[Event "Titled Tuesday Blitz November 14 Early 2023"]
[White "Dudzinski, Pawel"]
[Black "Yen, William"]
[WhiteFideId "1117890"]
[BlackFideId "30932025"]
[WhiteElo "2502"]
[BlackElo "2642"]
[Result "0-1"]
[Round "9"]
[TimeControl "180+1"]
[Date "2023.11.14"]
[WhiteClock "0:00:00"]
[BlackClock "0:00:06"]
[Board "82"]

1. e4 {[%clk 0:03:00]}  c5 {[%clk 0:02:58]} 2. Nc3 {[%clk 0:02:59]}  a6 {[%clk 0:02:55]} 3. a4 {[%clk 0:02:58]}  Nc6 {[%clk 0:02:50]} 4. g3 {[%clk 0:02:58]}  g6 {[%clk 0:02:48]} 5. Bg2 {[%clk 0:02:59]}  Bg7 {[%clk 0:02:48]} 6. d3 {[%clk 0:02:58]}  d6 {[%clk 0:02:46]} 7. f4 {[%clk 0:02:57]}  e6 {[%clk 0:02:45]} 8. Nf3 {[%clk 0:02:57]}  Nge7 {[%clk 0:02:46]} 9. Be3 {[%clk 0:02:56]}  O-O {[%clk 0:02:45]} 10. d4 {[%clk 0:02:57]}  cxd4 {[%clk 0:02:30]} 11. Nxd4 {[%clk 0:02:57]}  Qb6 {[%clk 0:02:16]} 12. Nce2 {[%clk 0:02:37]}  Qxb2 {[%clk 0:02:13]} 13. O-O {[%clk 0:02:22]}  Qb6 {[%clk 0:02:05]} 14. Nf5 {[%clk 0:02:19]}  Qd8 {[%clk 0:02:05]} 15. Nxg7 {[%clk 0:02:16]}  Kxg7 {[%clk 0:02:05]} 16. Qd2 {[%clk 0:02:10]}  f5 {[%clk 0:02:00]} 17. a5 {[%clk 0:01:34]}  d5 {[%clk 0:01:52]} 18. Bb6 {[%clk 0:01:29]}  Qd7 {[%clk 0:01:49]} 19. exd5 {[%clk 0:01:19]}  Nxd5 {[%clk 0:01:50]} 20. Rfd1 {[%clk 0:01:12]}  Qe7 {[%clk 0:01:44]} 21. Bxd5 {[%clk 0:01:04]}  exd5 {[%clk 0:01:43]} 22. Nc3 {[%clk 0:00:56]}  Be6 {[%clk 0:01:38]} 23. Nxd5 {[%clk 0:00:56]}  Bxd5 {[%clk 0:01:36]} 24. Qxd5 {[%clk 0:00:57]}  Qf7 {[%clk 0:01:30]} 25. Qxf7+ {[%clk 0:00:39]}  Rxf7 {[%clk 0:01:31]} 26. Rd2 {[%clk 0:00:37]}  Re8 {[%clk 0:01:28]} 27. Rad1 {[%clk 0:00:37]}  Rfe7 {[%clk 0:01:24]} 28. Rd7 {[%clk 0:00:35]}  Rxd7 {[%clk 0:01:24]} 29. Rxd7+ {[%clk 0:00:34]}  Re7 {[%clk 0:01:25]} 30. Rd2 {[%clk 0:00:30]}  Kf7 {[%clk 0:01:22]} 31. Kf2 {[%clk 0:00:31]}  Ke6 {[%clk 0:01:18]} 32. Bc5 {[%clk 0:00:28]}  Rd7 {[%clk 0:01:17]} 33. Re2+ {[%clk 0:00:29]}  Kd5 {[%clk 0:01:13]} 34. Rd2+ {[%clk 0:00:28]}  Ke6 {[%clk 0:01:13]} 35. Re2+ {[%clk 0:00:29]}  Kf7 {[%clk 0:01:10]} 36. Bb6 {[%clk 0:00:29]}  Rd6 {[%clk 0:01:02]} 37. c4 {[%clk 0:00:25]}  Re6 {[%clk 0:01:01]} 38. Rd2 {[%clk 0:00:25]}  Ke7 {[%clk 0:00:59]} 39. Bc5+ {[%clk 0:00:24]}  Ke8 {[%clk 0:00:52]} 40. Bb6 {[%clk 0:00:25]}  Ke7 {[%clk 0:00:45]} 41. Bc5+ {[%clk 0:00:24]}  Kf6 {[%clk 0:00:43]} 42. Rd7 {[%clk 0:00:23]}  Re4 {[%clk 0:00:40]} 43. Rxb7 {[%clk 0:00:18]}  Rxc4 {[%clk 0:00:40]} 44. Bb6 {[%clk 0:00:19]}  Rc2+ {[%clk 0:00:38]} 45. Kg1 {[%clk 0:00:19]}  h6 {[%clk 0:00:36]} 46. Rc7 {[%clk 0:00:19]}  g5 {[%clk 0:00:35]} 47. fxg5+ {[%clk 0:00:18]}  hxg5 {[%clk 0:00:36]} 48. h4 {[%clk 0:00:18]}  gxh4 {[%clk 0:00:31]} 49. gxh4 {[%clk 0:00:19]}  Kg6 {[%clk 0:00:28]} 50. Bf2 {[%clk 0:00:14]}  Rc1+ {[%clk 0:00:25]} 51. Kg2 {[%clk 0:00:14]}  Kh5 {[%clk 0:00:21]} 52. Rh7+ {[%clk 0:00:13]}  Kg6 {[%clk 0:00:18]} 53. Rc7 {[%clk 0:00:12]}  Rc2 {[%clk 0:00:17]} 54. Rc8 {[%clk 0:00:12]}  f4 {[%clk 0:00:14]} 55. Rc7 {[%clk 0:00:08]}  Kf5 {[%clk 0:00:14]} 56. Rf7+ {[%clk 0:00:08]}  Ke4 {[%clk 0:00:12]} 57. Rc7 {[%clk 0:00:09]}  Kf5 {[%clk 0:00:10]} 58. h5 {[%clk 0:00:09]}  Kg5 {[%clk 0:00:10]} 59. Rc8 {[%clk 0:00:05]}  Kxh5 {[%clk 0:00:09]} 60. Ra8 {[%clk 0:00:04]}  Ne5 {[%clk 0:00:07]} 61. Rxa6 {[%clk 0:00:04]}  f3+ {[%clk 0:00:07]} 62. Kg3 {[%clk 0:00:04]}  Ng4 {[%clk 0:00:05]} 63. Bd4 {[%clk 0:00:05]}  f2 {[%clk 0:00:04]} 64. Bxf2 {[%clk 0:00:04]}  Nxf2 {[%clk 0:00:03]} 65. Re6 {[%clk 0:00:02]}  Nd3 {[%clk 0:00:03]} 66. Rd6 {[%clk 0:00:02]}  Rc3 {[%clk 0:00:03]} 67. Kg2 {[%clk 0:00:01]}  Kg4 {[%clk 0:00:03]} 68. Rd4+ {[%clk 0:00:01]}  Nf4+ {[%clk 0:00:04]} 69. Kf1 {[%clk 0:00:01]}  Ra3 {[%clk 0:00:05]} 70. Ke1 {[%clk 0:00:01]}  Rxa5 {[%clk 0:00:05]} 71. Kd2 {[%clk 0:00:02]}  Re5 {[%clk 0:00:05]} 72. Rd8 {[%clk 0:00:03]}  Re2+ {[%clk 0:00:05]} 73. Kc3 {[%clk 0:00:03]}  Kf3 {[%clk 0:00:06]} 74. Kc4 {[%clk 0:00:02]}  Re3 {[%clk 0:00:06]} 75. Rh8 {[%clk 0:00:02]}  Re4+ {[%clk 0:00:07]} 76. Kc5 {[%clk 0:00:02]}  Re6 {[%clk 0:00:07]} 77. Kc4 {[%clk 0:00:03]}  Rg6 {[%clk 0:00:08]} 78. Kc5 {[%clk 0:00:04]}  Rg7 {[%clk 0:00:08]} 79. Kc4 {[%clk 0:00:05]}  Ne6 {[%clk 0:00:07]} 80. Kd5 {[%clk 0:00:05]}  Re7 {[%clk 0:00:07]} 81. Rh6 {[%clk 0:00:04]}  Nf4+ {[%clk 0:00:06]} 82. Kd6 {[%clk 0:00:04]}  Re3 {[%clk 0:00:07]} 83. Kc5 {[%clk 0:00:04]}  Ke4 {[%clk 0:00:07]} 84. Rh8 {[%clk 0:00:03]}  Rc3+ {[%clk 0:00:07]} 85. Kd6 {[%clk 0:00:03]}  Nd3 {[%clk 0:00:07]} 86. Rh4+ {[%clk 0:00:03]}  Ke3 {[%clk 0:00:07]} 87. Rh8 {[%clk 0:00:04]}  Kd4 {[%clk 0:00:08]} 88. Re8 {[%clk 0:00:04]}  Ra3 {[%clk 0:00:07]} 89. Rh8 {[%clk 0:00:05]}  Ra6+ {[%clk 0:00:07]} 90. Kc7 {[%clk 0:00:05]}  Nc5 {[%clk 0:00:08]} 91. Rh4+ {[%clk 0:00:05]}  Ne4 {[%clk 0:00:08]} 92. Rg4 {[%clk 0:00:04]}  Kd5 {[%clk 0:00:09]} 93. Kd7 {[%clk 0:00:04]}  Rd6+ {[%clk 0:00:09]} 94. Kc7 {[%clk 0:00:05]}  Re6 {[%clk 0:00:09]} 95. Rh4 {[%clk 0:00:06]}  Re7+ {[%clk 0:00:07]} 96. Kb6 {[%clk 0:00:05]}  Nd6 {[%clk 0:00:06]} 97. Rh5+ {[%clk 0:00:05]}  Ke6 {[%clk 0:00:07]} 98. Rh6+ {[%clk 0:00:06]}  Kd7 {[%clk 0:00:08]} 99. Kc5 {[%clk 0:00:06]}  Nf5 {[%clk 0:00:08]} 100. Rh1 {[%clk 0:00:05]}  Ng3 {[%clk 0:00:07]} 101. Rd1+ {[%clk 0:00:04]}  Kc7 {[%clk 0:00:08]} 102. Rg1 {[%clk 0:00:04]}  Ne2 {[%clk 0:00:08]} 103. Re1 {[%clk 0:00:03]}  Kd7 {[%clk 0:00:07]} 104. Kc4 {[%clk 0:00:04]}  Re6 {[%clk 0:00:06]} 105. Kd3 {[%clk 0:00:03]}  Nf4+ {[%clk 0:00:06]} 106. Kd2 {[%clk 0:00:04]}  Rd6+ {[%clk 0:00:06]} 107. Kc2 {[%clk 0:00:04]}  Rc6+ {[%clk 0:00:06]} 108. Kd2 {[%clk 0:00:04]}  Ra6 {[%clk 0:00:06]} 109. Rh1 {[%clk 0:00:03]}  Ra2+ {[%clk 0:00:07]} 110. Kc3 {[%clk 0:00:03]}  Ne2+ {[%clk 0:00:07]} 111. Kb3 {[%clk 0:00:03]}  Ra6 {[%clk 0:00:07]} 112. Rh6 {[%clk 0:00:00]}  Rxh6 {[%clk 0:00:06]} 0-1


[Site "https://www.chess.com"]

[Event "Titled Tuesday Blitz November 14 Early 2023"]
[White "Grochal, Joey"]
[Black "Borgaonkar Akshay"]
[WhiteFideId "1019945"]
[BlackFideId "25639110"]
[WhiteElo "2485"]
[BlackElo "2633"]
[Result "1-0"]
[Round "9"]
[TimeControl "180+1"]
[Date "2023.11.14"]
[WhiteClock "0:01:00"]
[BlackClock "0:00:00"]
[Board "83"]

1. e4 {[%clk 0:03:00]}  g6 {[%clk 0:02:52]} 2. d4 {[%clk 0:03:00]}  Bg7 {[%clk 0:02:53]} 3. Nc3 {[%clk 0:02:58]}  a6 {[%clk 0:02:53]} 4. Be3 {[%clk 0:02:56]}  d6 {[%clk 0:02:53]} 5. f3 {[%clk 0:02:55]}  b5 {[%clk 0:02:52]} 6. Bd3 {[%clk 0:02:55]}  Bb7 {[%clk 0:02:53]} 7. Qd2 {[%clk 0:02:55]}  Nd7 {[%clk 0:02:53]} 8. a4 {[%clk 0:02:50]}  b4 {[%clk 0:02:52]} 9. Nd5 {[%clk 0:02:48]}  a5 {[%clk 0:02:51]} 10. h4 {[%clk 0:02:44]}  h5 {[%clk 0:02:50]} 11. Nh3 {[%clk 0:02:43]}  Ngf6 {[%clk 0:02:40]} 12. Nxf6+ {[%clk 0:02:40]}  Nxf6 {[%clk 0:02:35]} 13. Ng5 {[%clk 0:02:37]}  Nd7 {[%clk 0:02:26]} 14. Bc4 {[%clk 0:02:32]}  O-O {[%clk 0:02:24]} 15. g4 {[%clk 0:02:27]}  Nb6 {[%clk 0:02:16]} 16. Bb3 {[%clk 0:02:22]}  d5 {[%clk 0:02:16]} 17. e5 {[%clk 0:02:19]}  hxg4 {[%clk 0:02:08]} 18. fxg4 {[%clk 0:02:11]}  Nc4 {[%clk 0:02:09]} 19. Bxc4 {[%clk 0:02:12]}  dxc4 {[%clk 0:02:09]} 20. Rh3 {[%clk 0:02:06]}  Qd7 {[%clk 0:02:05]} 21. Qe2 {[%clk 0:02:02]}  Qd5 {[%clk 0:01:46]} 22. h5 {[%clk 0:01:54]}  f6 {[%clk 0:01:30]} 23. hxg6 {[%clk 0:01:51]}  fxg5 {[%clk 0:00:46]} 24. Qh2 {[%clk 0:01:48]}  Rf3 {[%clk 0:00:47]} 25. O-O-O {[%clk 0:01:17]}  Rxh3 {[%clk 0:00:47]} 26. Qxh3 {[%clk 0:01:18]}  Qf3 {[%clk 0:00:47]} 27. Qh7+ {[%clk 0:01:13]}  Kf8 {[%clk 0:00:47]} 28. Bxg5 {[%clk 0:01:10]}  Re8 {[%clk 0:00:00]} 29. Bh6 {[%clk 0:01:00]} 1-0


[Site "https://www.chess.com"]

[Event "Titled Tuesday Blitz November 14 Early 2023"]
[White "Karamsetty, Jeevan"]
[Black "UNSTOPPABLE_LEGEND"]
[WhiteFideId "2025337"]
[WhiteElo "2604"]
[BlackElo "2465"]
[Result "0-1"]
[Round "9"]
[TimeControl "180+1"]
[Date "2023.11.14"]
[WhiteClock "0:00:19"]
[BlackClock "0:00:19"]
[Board "85"]

1. e4 {[%clk 0:03:00]}  c5 {[%clk 0:02:54]} 2. Nc3 {[%clk 0:03:00]}  Nc6 {[%clk 0:02:52]} 3. Bb5 {[%clk 0:03:00]}  Nd4 {[%clk 0:02:52]} 4. Bc4 {[%clk 0:03:01]}  e6 {[%clk 0:02:49]} 5. Nge2 {[%clk 0:03:01]}  a6 {[%clk 0:02:49]} 6. a4 {[%clk 0:03:01]}  Nf6 {[%clk 0:02:49]} 7. O-O {[%clk 0:03:01]}  d5 {[%clk 0:02:48]} 8. exd5 {[%clk 0:03:02]}  exd5 {[%clk 0:02:49]} 9. Ba2 {[%clk 0:03:02]}  Bg4 {[%clk 0:02:42]} 10. h3 {[%clk 0:02:57]}  Bh5 {[%clk 0:02:29]} 11. f3 {[%clk 0:02:53]}  Be7 {[%clk 0:02:27]} 12. d3 {[%clk 0:02:50]}  Nc6 {[%clk 0:02:06]} 13. Nf4 {[%clk 0:02:47]}  d4 {[%clk 0:01:57]} 14. Ne4 {[%clk 0:02:40]}  Bg6 {[%clk 0:01:52]} 15. Nxg6 {[%clk 0:02:30]}  hxg6 {[%clk 0:01:53]} 16. Re1 {[%clk 0:02:24]}  O-O {[%clk 0:01:52]} 17. Bg5 {[%clk 0:02:15]}  Rc8 {[%clk 0:01:40]} 18. Bxf6 {[%clk 0:02:03]}  Bxf6 {[%clk 0:01:41]} 19. Qd2 {[%clk 0:01:43]}  Be7 {[%clk 0:01:30]} 20. Qf4 {[%clk 0:01:36]}  Qc7 {[%clk 0:01:24]} 21. Qg4 {[%clk 0:01:27]}  Ne5 {[%clk 0:01:21]} 22. Qg3 {[%clk 0:01:24]}  Nc6 {[%clk 0:01:08]} 23. Bb3 {[%clk 0:00:59]}  b5 {[%clk 0:00:41]} 24. axb5 {[%clk 0:00:57]}  axb5 {[%clk 0:00:42]} 25. Ra6 {[%clk 0:00:37]}  Qxg3 {[%clk 0:00:24]} 26. Nxg3 {[%clk 0:00:38]}  Bh4 {[%clk 0:00:25]} 27. Kf2 {[%clk 0:00:38]}  Nb4 {[%clk 0:00:22]} 28. Rb6 {[%clk 0:00:20]}  Rb8 {[%clk 0:00:14]} 29. Rxb8 {[%clk 0:00:20]}  Rxb8 {[%clk 0:00:15]} 30. Re4 {[%clk 0:00:18]}  Bf6 {[%clk 0:00:14]} 31. Ne2 {[%clk 0:00:16]}  Rc8 {[%clk 0:00:14]} 32. Nf4 {[%clk 0:00:10]}  c4 {[%clk 0:00:14]} 33. dxc4 {[%clk 0:00:11]}  bxc4 {[%clk 0:00:15]} 34. Ba4 {[%clk 0:00:12]}  c3 {[%clk 0:00:07]} 35. bxc3 {[%clk 0:00:11]}  Rxc3 {[%clk 0:00:07]} 36. Ne2 {[%clk 0:00:11]}  Ra3 {[%clk 0:00:05]} 37. Bb3 {[%clk 0:00:10]}  d3 {[%clk 0:00:03]} 38. Rxb4 {[%clk 0:00:09]}  d2 {[%clk 0:00:02]} 39. Rb8+ {[%clk 0:00:08]}  Kh7 {[%clk 0:00:02]} 40. Nc3 {[%clk 0:00:05]}  Bxc3 {[%clk 0:00:02]} 41. Rd8 {[%clk 0:00:03]}  Ra1 {[%clk 0:00:02]} 42. Bxf7 {[%clk 0:00:01]}  d1=Q {[%clk 0:00:02]} 43. Bg8+ {[%clk 0:00:02]}  Kh6 {[%clk 0:00:02]} 44. Rxd1 {[%clk 0:00:03]}  Rxd1 {[%clk 0:00:03]} 45. Bc4 {[%clk 0:00:04]}  Rd2+ {[%clk 0:00:03]} 46. Kg3 {[%clk 0:00:04]}  Kg5 {[%clk 0:00:04]} 47. Bd3 {[%clk 0:00:05]}  Kf6 {[%clk 0:00:05]} 48. h4 {[%clk 0:00:06]}  Be5+ {[%clk 0:00:05]} 49. f4 {[%clk 0:00:06]}  Bc3 {[%clk 0:00:05]} 50. Kf3 {[%clk 0:00:07]}  Rd1 {[%clk 0:00:05]} 51. g4 {[%clk 0:00:07]}  Re1 {[%clk 0:00:05]} 52. g5+ {[%clk 0:00:07]}  Kf7 {[%clk 0:00:06]} 53. Kg4 {[%clk 0:00:08]}  Bd2 {[%clk 0:00:06]} 54. f5 {[%clk 0:00:07]}  gxf5+ {[%clk 0:00:07]} 55. Kxf5 {[%clk 0:00:08]}  Rh1 {[%clk 0:00:06]} 56. Kg4 {[%clk 0:00:08]}  Be1 {[%clk 0:00:06]} 57. h5 {[%clk 0:00:08]}  Rh4+ {[%clk 0:00:06]} 58. Kf5 {[%clk 0:00:05]}  Rxh5 {[%clk 0:00:06]} 59. Be2 {[%clk 0:00:06]}  Rh2 {[%clk 0:00:06]} 60. Bc4+ {[%clk 0:00:07]}  Ke7 {[%clk 0:00:06]} 61. Bd3 {[%clk 0:00:08]}  Bc3 {[%clk 0:00:07]} 62. Kg6 {[%clk 0:00:09]}  Kd6 {[%clk 0:00:07]} 63. Bf5 {[%clk 0:00:09]}  Kc5 {[%clk 0:00:07]} 64. Bd3 {[%clk 0:00:10]}  Kb4 {[%clk 0:00:08]} 65. Kf7 {[%clk 0:00:10]}  Rd2 {[%clk 0:00:08]} 66. g6 {[%clk 0:00:11]}  Ka3 {[%clk 0:00:09]} 67. Kg8 {[%clk 0:00:11]}  Bd4 {[%clk 0:00:09]} 68. Kh7 {[%clk 0:00:11]}  Rxd3 {[%clk 0:00:09]} 69. cxd3 {[%clk 0:00:12]}  Kb3 {[%clk 0:00:10]} 70. Kg8 {[%clk 0:00:12]}  Kc3 {[%clk 0:00:11]} 71. Kf7 {[%clk 0:00:13]}  Kxd3 {[%clk 0:00:11]} 72. Ke6 {[%clk 0:00:14]}  Ke4 {[%clk 0:00:12]} 73. Kf7 {[%clk 0:00:14]}  Kf5 {[%clk 0:00:12]} 74. Kg8 {[%clk 0:00:14]}  Kxg6 {[%clk 0:00:13]} 75. Kh8 {[%clk 0:00:15]}  Kf5 {[%clk 0:00:14]} 76. Kh7 {[%clk 0:00:16]}  g5 {[%clk 0:00:15]} 77. Kh6 {[%clk 0:00:16]}  g4 {[%clk 0:00:16]} 78. Kh5 {[%clk 0:00:17]}  g3 {[%clk 0:00:16]} 79. Kh4 {[%clk 0:00:18]}  g2 {[%clk 0:00:17]} 80. Kh3 {[%clk 0:00:19]}  g1=Q {[%clk 0:00:18]} 81. Kh4 {[%clk 0:00:19]}  Qg4# {[%clk 0:00:19]} 0-1


[Site "https://www.chess.com"]

[Event "Titled Tuesday Blitz November 14 Early 2023"]
[White "Demin, Vladimir"]
[Black "Ramla2020"]
[WhiteFideId "4167457"]
[WhiteElo "2589"]
[BlackElo "2459"]
[Result "1-0"]
[Round "9"]
[TimeControl "180+1"]
[Date "2023.11.14"]
[WhiteClock "0:01:02"]
[BlackClock "0:00:21"]
[Board "86"]

1. d4 {[%clk 0:03:00]}  Nf6 {[%clk 0:02:59]} 2. Nc3 {[%clk 0:03:01]}  d5 {[%clk 0:02:59]} 3. Bf4 {[%clk 0:03:01]}  Bf5 {[%clk 0:02:58]} 4. e3 {[%clk 0:03:01]}  e6 {[%clk 0:02:58]} 5. f3 {[%clk 0:03:01]}  c5 {[%clk 0:02:55]} 6. g4 {[%clk 0:03:00]}  Bg6 {[%clk 0:02:55]} 7. h4 {[%clk 0:03:01]}  h6 {[%clk 0:02:55]} 8. Nb5 {[%clk 0:02:58]}  Na6 {[%clk 0:02:54]} 9. c3 {[%clk 0:02:56]}  Be7 {[%clk 0:02:41]} 10. h5 {[%clk 0:02:43]}  Bh7 {[%clk 0:02:40]} 11. Bd3 {[%clk 0:02:42]}  Bxd3 {[%clk 0:02:40]} 12. Qxd3 {[%clk 0:02:43]}  Qb6 {[%clk 0:02:34]} 13. a4 {[%clk 0:02:42]}  c4 {[%clk 0:02:30]} 14. Qc2 {[%clk 0:02:40]}  Rc8 {[%clk 0:02:20]} 15. e4 {[%clk 0:02:33]}  Nb8 {[%clk 0:02:17]} 16. e5 {[%clk 0:02:30]}  Nfd7 {[%clk 0:02:04]} 17. Ne2 {[%clk 0:02:24]}  a6 {[%clk 0:02:01]} 18. Nd6+ {[%clk 0:02:24]}  Bxd6 {[%clk 0:02:01]} 19. exd6 {[%clk 0:02:25]}  Nc6 {[%clk 0:01:46]} 20. Kf2 {[%clk 0:02:16]}  Na5 {[%clk 0:01:46]} 21. Kg2 {[%clk 0:02:14]}  Nb3 {[%clk 0:01:41]} 22. Rae1 {[%clk 0:02:12]}  Rc6 {[%clk 0:01:39]} 23. Ng3 {[%clk 0:02:12]}  O-O {[%clk 0:01:31]} 24. g5 {[%clk 0:02:11]}  hxg5 {[%clk 0:01:25]} 25. Bxg5 {[%clk 0:02:05]}  Rxd6 {[%clk 0:01:21]} 26. Be7 {[%clk 0:02:05]}  Re8 {[%clk 0:01:18]} 27. Bxd6 {[%clk 0:02:04]}  Qxd6 {[%clk 0:01:19]} 28. Rh4 {[%clk 0:02:01]}  Qe7 {[%clk 0:01:14]} 29. Rg4 {[%clk 0:01:36]}  Qf6 {[%clk 0:01:12]} 30. Nf5 {[%clk 0:01:24]}  Kf8 {[%clk 0:00:55]} 31. Nxg7 {[%clk 0:01:19]}  Re7 {[%clk 0:00:51]} 32. h6 {[%clk 0:01:12]}  e5 {[%clk 0:00:40]} 33. h7 {[%clk 0:01:10]}  Qxg7 {[%clk 0:00:38]} 34. Rxg7 {[%clk 0:01:10]}  Kxg7 {[%clk 0:00:38]} 35. h8=Q+ {[%clk 0:01:01]}  Kxh8 {[%clk 0:00:21]} 36. Rh1+ {[%clk 0:01:02]} 1-0


[Site "https://www.chess.com"]

[Event "Titled Tuesday Blitz November 14 Early 2023"]
[White "Degtiarev, Evgeny"]
[Black "Karas, Marek"]
[WhiteFideId "4149610"]
[BlackFideId "14928558"]
[WhiteElo "2373"]
[BlackElo "2551"]
[Result "1-0"]
[Round "9"]
[TimeControl "180+1"]
[Date "2023.11.14"]
[WhiteClock "0:00:27"]
[BlackClock "0:00:00"]
[Board "92"]

1. d4 {[%clk 0:03:00]}  Nf6 {[%clk 0:02:58]} 2. c4 {[%clk 0:03:01]}  g6 {[%clk 0:02:57]} 3. Nc3 {[%clk 0:03:01]}  Bg7 {[%clk 0:02:57]} 4. e4 {[%clk 0:03:00]}  d6 {[%clk 0:02:58]} 5. h3 {[%clk 0:03:01]}  O-O {[%clk 0:02:57]} 6. Bg5 {[%clk 0:03:01]}  c5 {[%clk 0:02:57]} 7. d5 {[%clk 0:02:40]}  b5 {[%clk 0:02:54]} 8. cxb5 {[%clk 0:02:35]}  a6 {[%clk 0:02:43]} 9. a4 {[%clk 0:02:34]}  axb5 {[%clk 0:02:26]} 10. Bxb5 {[%clk 0:02:24]}  Ba6 {[%clk 0:02:23]} 11. Nge2 {[%clk 0:02:03]}  Bxb5 {[%clk 0:02:05]} 12. axb5 {[%clk 0:02:04]}  Nbd7 {[%clk 0:02:02]} 13. O-O {[%clk 0:02:01]}  Qb6 {[%clk 0:01:45]} 14. Qc2 {[%clk 0:01:23]}  Rfb8 {[%clk 0:01:26]} 15. Ra4 {[%clk 0:01:19]}  Qb7 {[%clk 0:01:14]} 16. Rfa1 {[%clk 0:01:18]}  h6 {[%clk 0:01:11]} 17. Be3 {[%clk 0:01:12]}  Ne8 {[%clk 0:01:04]} 18. Rxa8 {[%clk 0:01:05]}  Rxa8 {[%clk 0:01:04]} 19. Rxa8 {[%clk 0:01:05]}  Qxa8 {[%clk 0:01:04]} 20. Qa4 {[%clk 0:01:04]}  Qb8 {[%clk 0:00:54]} 21. b4 {[%clk 0:00:59]}  Nb6 {[%clk 0:00:41]} 22. Qb3 {[%clk 0:00:54]}  c4 {[%clk 0:00:31]} 23. Qa2 {[%clk 0:00:50]}  Nc7 {[%clk 0:00:20]} 24. Bxb6 {[%clk 0:00:48]}  Qxb6 {[%clk 0:00:19]} 25. Qxc4 {[%clk 0:00:48]}  Bf6 {[%clk 0:00:12]} 26. Qc6 {[%clk 0:00:36]}  Qb8 {[%clk 0:00:12]} 27. b6 {[%clk 0:00:35]}  Na6 {[%clk 0:00:06]} 28. b7 {[%clk 0:00:33]}  Nc7 {[%clk 0:00:00]} 29. Nb5 {[%clk 0:00:27]} 1-0


[Site "https://www.chess.com"]

[Event "Titled Tuesday Blitz November 14 Early 2023"]
[White "Zaksaite, Salomeja"]
[Black "Ben Artzi, Ido"]
[WhiteFideId "12801496"]
[BlackFideId "2810913"]
[WhiteElo "2357"]
[BlackElo "2549"]
[Result "1-0"]
[Round "9"]
[TimeControl "180+1"]
[Date "2023.11.14"]
[WhiteClock "0:00:24"]
[BlackClock "0:00:18"]
[Board "94"]

1. e4 {[%clk 0:03:00]}  c5 {[%clk 0:02:57]} 2. Nf3 {[%clk 0:03:00]}  Nc6 {[%clk 0:02:56]} 3. Bb5 {[%clk 0:03:00]}  g6 {[%clk 0:02:55]} 4. O-O {[%clk 0:02:59]}  Bg7 {[%clk 0:02:56]} 5. Re1 {[%clk 0:02:58]}  Nd4 {[%clk 0:02:56]} 6. Bf1 {[%clk 0:02:53]}  d6 {[%clk 0:02:55]} 7. c3 {[%clk 0:02:53]}  Nxf3+ {[%clk 0:02:55]} 8. Qxf3 {[%clk 0:02:54]}  Nf6 {[%clk 0:02:55]} 9. d4 {[%clk 0:02:52]}  O-O {[%clk 0:02:53]} 10. dxc5 {[%clk 0:01:49]}  dxc5 {[%clk 0:02:52]} 11. Be3 {[%clk 0:01:49]}  Qc7 {[%clk 0:02:49]} 12. Na3 {[%clk 0:01:47]}  b6 {[%clk 0:02:41]} 13. e5 {[%clk 0:01:30]}  Bb7 {[%clk 0:02:40]} 14. exf6 {[%clk 0:01:27]}  Bxf3 {[%clk 0:02:37]} 15. fxg7 {[%clk 0:01:27]}  Kxg7 {[%clk 0:02:29]} 16. gxf3 {[%clk 0:01:28]}  Rfd8 {[%clk 0:02:27]} 17. f4 {[%clk 0:01:15]}  Rd7 {[%clk 0:02:23]} 18. Nc4 {[%clk 0:01:14]}  f6 {[%clk 0:02:22]} 19. Bh3 {[%clk 0:01:11]}  Rd3 {[%clk 0:02:16]} 20. Bf1 {[%clk 0:01:11]}  Rd7 {[%clk 0:02:13]} 21. Bh3 {[%clk 0:01:11]}  Rd3 {[%clk 0:02:09]} 22. Bf1 {[%clk 0:01:11]}  Rdd8 {[%clk 0:02:08]} 23. Bg2 {[%clk 0:01:03]}  Rac8 {[%clk 0:02:07]} 24. Rad1 {[%clk 0:01:03]}  Rxd1 {[%clk 0:02:07]} 25. Rxd1 {[%clk 0:01:02]}  Rd8 {[%clk 0:02:07]} 26. Re1 {[%clk 0:01:02]}  b5 {[%clk 0:02:04]} 27. Nd2 {[%clk 0:01:02]}  e5 {[%clk 0:01:22]} 28. Ne4 {[%clk 0:00:46]}  c4 {[%clk 0:01:20]} 29. fxe5 {[%clk 0:00:42]}  fxe5 {[%clk 0:01:17]} 30. Ng5 {[%clk 0:00:35]}  Rd6 {[%clk 0:01:12]} 31. f4 {[%clk 0:00:34]}  Qd8 {[%clk 0:00:29]} 32. fxe5 {[%clk 0:00:30]}  Ra6 {[%clk 0:00:29]} 33. e6 {[%clk 0:00:25]}  h6 {[%clk 0:00:26]} 34. Bd4+ {[%clk 0:00:25]}  Kg8 {[%clk 0:00:18]} 35. e7 {[%clk 0:00:24]} 1-0


[Site "https://www.chess.com"]